[Event "FTX Crypto Cup MCCT 2022"]
[Site "Miami"]
[Date "2022.08.11"]
[Round "7.2"]
[White "Praggnanandhaa R"]
[Black "Carlsen, Magnus"]
[Result "1/2-1/2"]
[ECO "D38"]
[WhiteElo "2648"]
[BlackElo "2864"]
[Annotator "TA"]
[PlyCount "129"]
[EventDate "2022.08.10"]
[EventType "tourn"]
[EventCountry "USA"]
[SourceTitle "playchess.com"]
[Source "ChessBase"]
[SourceQuality "1"]
[TimeControl "900+10"]

{[%evp 11,129,18,13,22,44,6,8,9,7,7,25,0,0,0,0,-13,0,-7,0,-12,-14,-120,-118,-93,-119,-105,-104,-150,-150,-147,-96,-132,-133,-130,-130,-147,-192,-202,-195,-213,-219,-191,-215,-193,-209,-194,-162,-176,-176,-176,-152,-146,-120,-148,-123,-114,-118,-123,-116,-125,-113,-140,-139,-141,-140,-243,-259,-254,-233,-233,-227,-218,-214,-271,-271,-271,-271,-271,-167,-173,-81,-105,-28,-81,-28,-28,-28,-68,-68,-95,-95,-95,-95,-95,-44,-95,-95,-95,-95,-95,-95,-95,0,0,0,0,0,-95,0,0,0,0,0,0,0,0,0,0,0,0]} 1. d4 {[%emt 0:00:00]} Nf6 {[%emt 0:00:00]} 2. c4 {[%emt 0:00:01]} e6 {[%emt 0:00:07]} 3. Nf3 {[%emt 0:00:02]} d5 {[%emt 0:00:07]} 4. Nc3 {[%emt 0:00:01]} Bb4 {[%emt 0:00:03]} 5. Qa4+ {[%emt 0:00:08]} Nc6 {[%emt 0:00:02]} 6. e3 {[%emt 0:00:00]} O-O {[%emt 0:00:02]} 7. Qc2 {[%emt 0:00:15] D38: Queen's Gambit Declined: Ragozin Defence (4 Nf3 Bb4).} Na5 {[%emt 0:01:30] [#]} 8. cxd5 $146 {[%emt 0:01:20]} ({Predecessor:} 8. c5 b6 9. Bd2 Nc4 10. a3 Nxd2 11. Nxd2 Bxc3 12. Qxc3 a5 13. Rc1 Ba6 14. cxb6 cxb6 15. Bxa6 Rxa6 {½-½ (64) Ding,L (2806)-Caruana,F (2783) Madrid 2022}) 8... exd5 {[%emt 0:00:05]} 9. Bd3 {[%emt 0:00:16]} c5 {[%emt 0:00:56]} 10. dxc5 {[%emt 0:03:02] Black should prevent a3.} Nc6 {[%emt 0:00:08][%cal Ba5c6,Bc6b4,Bb4d3][%mdl 32]} 11. Bd2 {[%emt 0:01:02]} Bxc5 {[%emt 0:00:09]} 12. Ne2 {[%emt 0:00:20]} Nb4 {[%emt 0:00:28]} 13. Qb1 {[%emt 0:01:29]} ({But not} 13. Bxh7+ $2 Nxh7 14. Qb3 a5 $19) 13... Nxd3+ {[%emt 0:00:02]} 14. Qxd3 {[%emt 0:00:01]} Ne4 {[%emt 0:00:04]} 15. Nfd4 {[%emt 0:01:14] Inhibits Bf5.} a5 {[%emt 0:01:19]} 16. Rc1 {[%emt 0:01:06]} (16. O-O $11 {keeps the balance.}) 16... b6 $1 $17 {[%emt 0:00:36] Hoping for ...Ba6.} 17. Bc3 {[%emt 0:00:54]} Ba6 {[%emt 0:00:37]} 18. Qd1 {[%emt 0:00:01]} Rc8 {[%emt 0:02:11]} 19. O-O {[%emt 0:00:55]} (19. Rc2 $142) 19... Bxd4 {[%emt 0:00:59]} 20. exd4 {[%emt 0:00:03]} Qf6 {[%emt 0:03:01]} (20... f5 $142 21. Re1 Qh4) 21. f3 {[%emt 0:00:16]} Nxc3 {[%emt 0:00:21]} 22. bxc3 {[%emt 0:00:06]} Qe7 {[%emt 0:00:21]} 23. Re1 {[%emt 0:02:05]} Qe3+ $1 {[%emt 0:00:02]} 24. Kh1 {[%emt 0:00:01]} Rfe8 {[%emt 0:00:37][%cal Ra6e2]} 25. Ng3 {[%emt 0:00:14]} Qxe1+ {[%emt 0:00:04]} 26. Qxe1 {[%emt 0:00:03]} Rxe1+ {[%emt 0:00:00]} 27. Rxe1 $19 {[%emt 0:00:00][%mdl 4096] Endgame KRB-KRN} g6 {[%emt 0:00:01] Prevents Nf5.} 28. Rc1 {[%emt 0:00:44]} Rc4 {[%emt 0:02:31]} 29. Ne2 {[%emt 0:01:16]} Ra4 {[%emt 0:00:11][%csl LRa2,LRe2]} 30. Rc2 {[%emt 0:00:02]} Ra3 {[%emt 0:00:47]} 31. Nc1 {[%emt 0:00:07] Against Bd3} Bb5 {[%emt 0:00:09]} 32. Kg1 {[%emt 0:01:16]} Ba4 {[%emt 0:00:15]} 33. Rb2 {[%emt 0:00:01]} Rxc3 {[%emt 0:00:01]} 34. Ne2 {[%emt 0:00:01]} Rc4 {[%emt 0:00:52]} 35. Rxb6 {[%emt 0:00:44]} Bd1 {[%emt 0:00:02]} 36. Kf1 {[%emt 0:01:28]} Bxe2+ {[%emt 0:00:11]} 37. Kxe2 {[%emt 0:00:00]} Rxd4 $17 {[%emt 0:00:05] KR-KR} 38. Kf2 {[%emt 0:00:16]} (38. Rb3 $17) 38... Rd2+ $19 {[%emt 0:00:22]} 39. Kg3 {[%emt 0:00:01]} a4 {[%emt 0:00:14]} 40. a3 {[%emt 0:00:11]} Rd3 {[%emt 0:00:03]} 41. Rb5 {[%emt 0:00:10]} Kg7 {[%emt 0:01:26]} 42. Rb4 {[%emt 0:00:10]} Rxa3 {[%emt 0:00:07] And now ...Kf6 would win.} 43. Rd4 {[%emt 0:00:01]} Kf6 {[%emt 0:00:10]} 44. Rxd5 {[%emt 0:00:01]} Rc3 {[%emt 0:00:24]} 45. Ra5 {[%emt 0:00:04] [#]} a3 {[%emt 0:00:01]} (45... Rc4 $1 $19 {has better winning chances.} 46. h3 h6) 46. Kf4 {[%emt 0:00:43]} Ke6 {[%emt 0:00:05]} (46... g5+ $17 47. Ke4 Kg6) 47. h4 {[%emt 0:00:09]} (47. Kg5 $1 $11 {remains equal.}) 47... f6 {[%emt 0:00:02]} (47... Kd6 $17 {aiming for ...Kc6.} 48. Ke4 h5) 48. Ke4 $11 {[%emt 0:00:31]} h5 {[%emt 0:00:59]} 49. Kd4 {[%emt 0:00:12]} Rb3 {[%emt 0:00:07]} 50. Kc4 {[%emt 0:00:06]} Rb2 {[%emt 0:00:01]} 51. Rxa3 {[%emt 0:00:01]} Rxg2 {[%emt 0:00:01] White must now prevent ...Ke5.} 52. Kd3 {[%emt 0:00:04]} g5 {[%emt 0:00:25]} ({Better is} 52... Rb2 $17 {...Rb4 is the strong threat.} 53. Ra4 Kf5) 53. hxg5 $15 {[%emt 0:00:19]} fxg5 {[%emt 0:00:13]} 54. Ke3 {[%emt 0:00:04]} h4 {[%emt 0:00:04]} 55. Ra6+ {[%emt 0:00:09]} Kf5 {[%emt 0:00:11]} 56. Ra5+ {[%emt 0:00:03] [#]} Kg6 {[%emt 0:00:02]} (56... Kf6 $1 $17 {Strongly threatening ...h3.} 57. Ra6+ Ke5) 57. Ra6+ $1 $11 {[%emt 0:00:02]} Kh5 {[%emt 0:00:02]} 58. Ra8 {[%emt 0:00:01]} Rb2 {[%emt 0:00:04]} 59. Rh8+ {[%emt 0:00:12]} Kg6 {[%emt 0:00:01]} 60. f4 $1 {[%emt 0:00:21] The position is equal.} h3 {[%emt 0:00:05]} 61. fxg5 {[%emt 0:00:06]} Kxg5 {[%emt 0:00:03]} 62. Kf3 {[%emt 0:00:03]} h2 {[%emt 0:00:00]} 63. Kg3 {[%emt 0:00:01]} Ra2 {[%emt 0:00:01]} 64. Rxh2 {[%emt 0:00:02]} Rxh2 {[%emt 0:00:00]} 65. Kxh2 {[%emt 0:00:00] And White is the lucky defender.  Weighted Error Value: White=0.14 (very precise) /Black=0.14 (very precise)} 1/2-1/2

[Event "FTX Crypto Cup MCCT 2022"]
[Site "Miami"]
[Date "2022.08.11"]
[Round "7.3"]
[White "Carlsen, Magnus"]
[Black "Praggnanandhaa R"]
[Result "1-0"]
[ECO "E04"]
[WhiteElo "2864"]
[BlackElo "2648"]
[Annotator "TA"]
[PlyCount "143"]
[EventDate "2022.08.10"]
[EventType "tourn"]
[EventCountry "USA"]
[SourceTitle "playchess.com"]
[Source "ChessBase"]
[SourceQuality "1"]
[TimeControl "900+10"]

{[%evp 17,143,8,16,4,2,-10,27,10,15,16,15,17,50,45,45,37,52,33,40,30,24,22,58,55,54,43,53,31,27,22,18,23,33,18,24,5,12,9,9,8,9,3,3,2,2,0,0,0,81,65,105,57,116,124,148,147,136,145,149,148,168,165,224,206,245,211,245,238,283,306,290,221,296,228,147,121,398,271,664,664,664,664,664,527,489,482,452,432,881,441,12075,6107,12842,12249,29944,29954,29936,9825,29963,29966,29969,29970,29970,29966,29965,29964,29964,29962,29960,29962,29962,29959,7069,773,6776,6747,29978,29978,29977,29979,29980,29981,29981,29982,29984,29985,29985,29986]} 1. Nf3 {[%emt 0:00:00]} d5 {[%emt 0:00:00]} 2. d4 {[%emt 0:00:04]} Nf6 {[%emt 0:00:02]} 3. c4 {[%emt 0:00:02]} e6 {[%emt 0:00:00]} 4. g3 {[%emt 0:00:03]} dxc4 {[%emt 0:00:15]} 5. Bg2 {[%emt 0:00:28]} Bd7 {[%emt 0:00:04][%cal Bc8d7,Bd7c6,Bc6d5][%mdl 32]} 6. Qc2 {[%emt 0:00:56]} c5 {[%emt 0:00:14]} 7. Qxc4 {[%emt 0:00:13]} Bc6 {[%emt 0:00:14]} 8. dxc5 {[%emt 0:00:04]} Nbd7 {[%emt 0:01:58]} 9. Be3 {[%emt 0:00:03]} Bd5 {[%emt 0:00:03]} 10. Qc1 $5 {[%emt 0:01:56][%mdl 4] Exploring less charted territory. E04: Open Catalan: 5 Nf3.} Ng4 {[%emt 0:01:47] [#]} 11. Bg5 $146 {[%emt 0:03:03]} ({Predecessor:} 11. Bd4 e5 12. h3 exd4 13. hxg4 Nxc5 14. O-O Ne6 15. Rd1 Rc8 16. Qd2 Bc5 17. Qd3 Qb6 {0-1 (79) Li,B (2319)-Yuan,Q (2359) Changsha 2019}) 11... Qa5+ {[%emt 0:01:40]} 12. Qc3 {[%emt 0:01:05] White has an edge.} Qxc5 {[%emt 0:00:25]} 13. O-O {[%emt 0:00:02]} Bc6 {[%emt 0:01:37]} 14. h3 {[%emt 0:00:43]} Nge5 {[%emt 0:01:17]} 15. Nxe5 {[%emt 0:00:23]} Nxe5 {[%emt 0:00:02]} 16. Rd1 {[%emt 0:02:25]} Bxg2 {[%emt 0:02:13]} 17. Kxg2 {[%emt 0:00:16]} Qc6+ {[%emt 0:02:10]} 18. f3 {[%emt 0:00:45]} Qxc3 {[%emt 0:00:07]} 19. Nxc3 {[%emt 0:00:01][%cal Bb1c3,Bc3a4,Ba4b6,Bb6c8][%mdl 32] Strongly threatening Nb5.} a6 {[%emt 0:01:05] Against Nb5} 20. Na4 {[%emt 0:01:21] Black must now prevent Nb6.} Be7 {[%emt 0:00:39]} 21. Bf4 {[%emt 0:00:22][%cal Bg5f4,Bf4c7,Bc7b6,Bb6c5][%mdl 32]} Nc6 {[%emt 0:00:24]} 22. Nb6 {[%emt 0:00:14]} Rd8 {[%emt 0:00:02]} 23. Bc7 {[%emt 0:00:07]} Rxd1 {[%emt 0:00:01]} 24. Rxd1 {[%emt 0:00:02]} Bc5 {[%emt 0:00:10]} 25. Nc8 {[%emt 0:02:00]} f6 {[%emt 0:00:53]} 26. Bb6 {[%emt 0:01:10]} O-O {[%emt 0:00:38]} 27. Bxc5 {[%emt 0:00:14]} Rxc8 $11 {[%emt 0:00:01][%mdl 4096] Endgame KRB-KRN} 28. Rd6 {[%emt 0:00:14]} Rd8 {[%emt 0:00:42]} 29. Rxe6 {[%emt 0:00:19]} Rd2 {[%emt 0:00:07]} 30. Ba3 {[%emt 0:00:22]} Kf7 {[%emt 0:00:13]} 31. Re4 {[%emt 0:00:04]} b5 {[%emt 0:00:08]} 32. Kf2 {[%emt 0:00:06]} f5 {[%emt 0:00:40]} (32... Rd1 $11 {keeps the balance.}) 33. Rf4 $16 {[%emt 0:00:29]} Ke6 {[%emt 0:00:14] ...g5 is the strong threat.} 34. Ke1 {[%emt 0:00:05]} (34. g4 $1 $16) 34... Rd8 {[%emt 0:00:09]} (34... g5 $1 $14) 35. g4 {[%emt 0:00:07]} g5 {[%emt 0:00:28]} 36. gxf5+ {[%emt 0:00:19]} ({Don't do} 36. Rxf5 b4 $16) 36... Kf6 {[%emt 0:00:01]} 37. Re4 {[%emt 0:00:03] aiming for Re6+.} Kxf5 {[%emt 0:00:01]} 38. Bc5 {[%emt 0:00:04] Against Nd4} Rd5 {[%emt 0:00:04]} 39. Be3 {[%emt 0:00:04]} Ne5 {[%emt 0:00:17]} (39... h5 $142 40. h4 gxh4) 40. h4 $18 {[%emt 0:00:44]} h6 {[%emt 0:00:13]} 41. hxg5 {[%emt 0:00:13]} hxg5 {[%emt 0:00:01]} 42. Rd4 {[%emt 0:00:01]} Rxd4 {[%emt 0:00:28]} 43. Bxd4 {[%emt 0:00:01] KB-KN} Nc6 {[%emt 0:00:12] [#]} 44. Bc3 {[%emt 0:00:21]} g4 {[%emt 0:00:05]} 45. Kf2 {[%emt 0:00:01]} gxf3 {[%emt 0:00:05]} 46. Kxf3 {[%emt 0:00:01]} Ke6 $2 {[%emt 0:00:06][%mdl 8192] [#] Black cannot hold the game after this.} (46... a5 $16 {keeps fighting.} 47. e4+ Ke6) 47. Ke4 $1 {[%emt 0:00:01]} Nb8 $2 {[%emt 0:00:32]} (47... b4) 48. Kd4 {[%emt 0:00:08]} Nd7 {[%emt 0:00:01]} 49. Bb4 {[%emt 0:00:07]} Nb6 {[%emt 0:00:10]} 50. b3 {[%emt 0:00:07]} Nd5 {[%emt 0:00:12]} 51. Bd2 {[%emt 0:00:09]} Nf6 {[%emt 0:00:02]} 52. e4 {[%emt 0:00:28][%cal Be2e4,Be4e5][%mdl 32]} Nd7 {[%emt 0:00:07]} (52... Nh5 $142 53. Bc1 Kd6) 53. Bb4 {[%emt 0:00:06]} Nf6 {[%emt 0:00:06]} (53... Ne5 $142 54. Bf8 Nd7) 54. e5 {[%emt 0:00:35]} Nd5 {[%emt 0:00:08]} 55. Bd6 {[%emt 0:00:14]} b4 {[%emt 0:00:18]} 56. Kc4 {[%emt 0:00:04]} a5 {[%emt 0:00:05]} 57. Kb5 {[%emt 0:00:01]} (57. Kc5 $142 Nc3 58. Kb6 a4 59. Ka5 axb3 60. axb3 Ne2 61. Kxb4 Kd5 62. Ka4) 57... Nc3+ {[%emt 0:00:03]} 58. Kxa5 {[%emt 0:00:00]} Nxa2 {[%emt 0:00:01]} 59. Ka4 {[%emt 0:00:01]} Kd5 {[%emt 0:00:46]} 60. Kb5 {[%emt 0:00:01]} Ke6 {[%emt 0:00:10]} 61. Kc4 {[%emt 0:00:06]} Kf5 {[%emt 0:00:05]} 62. Kd5 {[%emt 0:00:01]} Nc3+ {[%emt 0:00:03]} 63. Kc6 {[%emt 0:00:12]} Ke6 {[%emt 0:00:09]} 64. Kc5 {[%emt 0:00:33]} Na2 {[%emt 0:00:03]} 65. Kb5 {[%emt 0:00:01]} Kd5 {[%emt 0:00:06]} 66. Ka4 {[%emt 0:00:00]} Ke6 {[%emt 0:00:11]} 67. Bxb4 {[%emt 0:00:01] White mates.} Nc1 {[%emt 0:00:19]} 68. Bd6 {[%emt 0:00:02]} Kd5 {[%emt 0:00:01]} 69. b4 {[%emt 0:00:01][%cal Bb3b4,Bb4b5][%mdl 32]} Nd3 {[%emt 0:00:24]} 70. b5 {[%emt 0:00:03]} Nb2+ {[%emt 0:00:03]} 71. Ka5 {[%emt 0:00:01]} Nc4+ {[%emt 0:00:01]} 72. Ka6 {[%emt 0:00:01] Weighted Error Value: White=0.14 (very precise) /Black=0.57} 1-0

[Event "FTX Crypto Cup MCCT 2022"]
[Site "Miami"]
[Date "2022.08.11"]
[Round "7.3"]
[White "Aronian, Levon"]
[Black "Firouzja, Alireza"]
[Result "1/2-1/2"]
[ECO "A28"]
[WhiteElo "2775"]
[BlackElo "2793"]
[Annotator "TA"]
[PlyCount "117"]
[EventDate "2022.08.10"]
[EventType "tourn"]
[EventCountry "USA"]
[SourceTitle "playchess.com"]
[Source "ChessBase"]
[SourceQuality "1"]
[TimeControl "900+10"]

{[%evp 9,117,0,6,0,2,-10,-14,-17,-15,-11,-12,-14,-6,-9,0,-33,0,0,2,2,19,12,18,8,18,20,3,0,0,5,19,0,0,0,6,0,0,5,57,60,73,34,19,41,19,-8,0,-29,-25,-93,-43,-58,-49,-36,-35,-127,-39,-42,0,0,0,0,0,-499,0,0,0,0,0,0,0,-231,0,0,0,0,0,0,0,0,0,-12,0,0,0,-23,-23,-23,-10,-24,-9,-1737,-6087,-1681,-408,-1489,0,-57,0,0,0,0,0,0,0,0,0,0,0,0]} 1. c4 {[%emt 0:00:00]} e5 {[%emt 0:00:00]} 2. Nc3 {[%emt 0:00:02]} Nf6 {[%emt 0:00:02]} 3. Nf3 {[%emt 0:00:01]} Nc6 {[%emt 0:00:01]} 4. e4 {[%emt 0:00:01]} Bb4 {[%emt 0:00:01]} 5. d3 {[%emt 0:00:01]} d6 {[%emt 0:00:01]} 6. Be2 {[%emt 0:00:01] A28: English Opening: Four Knights Variation.} Bc5 {[%emt 0:00:01] 6...Bg4 is a critical line.} 7. O-O {[%emt 0:00:01]} O-O {[%emt 0:00:01]} 8. Nd2 {[%emt 0:00:22] [#]} a5 $146 {[%emt 0:01:14]} ({Predecessor:} 8... Nd4 9. Nb3 Nxb3 10. axb3 c6 11. Kh1 Bd4 12. f4 exf4 13. Bxf4 Be6 14. Qe1 Ne8 {1-0 (49) Glavina,P (2412)-Alonso Moyano,J (2334) Linares 2020}) 9. Nb3 {[%emt 0:00:05]} Bb6 {[%emt 0:00:42]} 10. Na4 {[%emt 0:00:01]} Ba7 {[%emt 0:00:36]} 11. Kh1 {[%emt 0:00:02]} Bd7 {[%emt 0:01:24]} 12. f4 {[%emt 0:00:25]} h6 {[%emt 0:00:04]} (12... Ne7 $5 {[%cal Rd7a4]} 13. Nc3 a4 $15) 13. Nc3 {[%emt 0:00:13]} Bb6 {[%emt 0:02:46]} 14. a4 {[%emt 0:00:06]} Nd4 {[%emt 0:00:13]} 15. Nxd4 {[%emt 0:00:02]} Bxd4 {[%emt 0:00:01]} 16. Qe1 {[%emt 0:00:10]} exf4 {[%emt 0:01:43]} 17. Bxf4 {[%emt 0:00:03]} Nh7 {[%emt 0:00:05][%cal Bf6h7,Bh7g5,Bg5e6,Be6d4][%mdl 32]} 18. Qg3 {[%emt 0:02:11]} Kh8 {[%emt 0:00:04]} 19. Rab1 {[%emt 0:00:39]} Ng5 {[%emt 0:00:43]} 20. Nb5 {[%emt 0:00:37]} Bxb5 {[%emt 0:00:50]} 21. cxb5 {[%emt 0:00:03]} Ne6 {[%emt 0:00:48]} 22. Bd2 {[%emt 0:00:02]} Be5 {[%emt 0:01:59]} 23. Qh3 {[%emt 0:00:48]} Kh7 {[%emt 0:00:04]} (23... Qe7 $11) 24. Bg4 $14 {[%emt 0:00:37]} Nd4 {[%emt 0:00:02]} 25. Rf2 {[%emt 0:02:13] White is more active.} Qe7 {[%emt 0:00:02]} 26. Rbf1 {[%emt 0:00:03]} c6 {[%emt 0:00:48]} 27. Bf5+ {[%emt 0:02:54]} Nxf5 {[%emt 0:00:07]} 28. exf5 {[%emt 0:00:02][%cal Of5f6] aiming for f6!} Bf6 {[%emt 0:00:58]} (28... Bxb2 29. f6 (29. Bxh6 gxh6 30. Rxb2 Qf6 $11) 29... Qe6 30. Qh4 $16) 29. Re1 {[%emt 0:00:30]} (29. g4 $11 {keeps the balance.}) 29... Qd8 {[%emt 0:00:14]} (29... Qd7 $17 30. bxc6 Qxc6) 30. g4 {[%emt 0:01:47][%cal Bg2g4,Bg4g5,Bg5g6,Bg6g7][%mdl 32]} Bh4 {[%emt 0:01:04]} 31. f6 $1 {[%emt 0:00:22]} Bxf6 {[%emt 0:00:16] And now ...Bh4 would win.} (31... Bxf2 32. fxg7 Qh4 33. gxf8=N+ Rxf8 34. Qxh4 Bxh4 35. Rc1 $14) 32. Rf5 {[%emt 0:02:37]} (32. Ref1 $1 $15 Bg5 33. Bxg5 Qxg5 34. Rf5) 32... Kg8 {[%emt 0:00:56]} ({Better is} 32... Bxb2 $17 {Strongly threatening ...Qd7.} 33. Qg2 Be5) 33. Bxh6 $1 $15 {[%emt 0:00:18]} Bh4 {[%emt 0:01:46]} (33... gxh6 $2 34. Qxh6 Re8 35. Ref1 $18 (35. Rxe8+ Qxe8 36. Qxf6 Qe6 $18)) 34. g5 {[%emt 0:02:02]} Bxe1 {[%emt 0:00:24]} 35. Bxg7 $1 {[%emt 0:00:04][%mdl 64] [#] Decoy} Kxg7 {[%emt 0:00:03]} 36. Qh6+ {[%emt 0:00:01]} Kg8 {[%emt 0:00:00]} 37. g6 {[%emt 0:00:00][%csl Gg6][%cal Rh6h7]} Qh4 {[%emt 0:00:09]} (37... fxg6 $2 {is a self mate.} 38. Qxg6+ Kh8 39. Rh5#) 38. Rh5 {[%emt 0:00:02] Chess con chili.} Qxh5 $1 {[%emt 0:00:05]} 39. Qxh5 {[%emt 0:00:01][%csl Gg6][%cal Rh5h7]} Kg7 {[%emt 0:00:48][%cal Bg8g7,Bg7f6,Bf6e7,Be7d7,Bd7e6][%mdl 32]} 40. Qh7+ {[%emt 0:00:02]} Kf6 {[%emt 0:00:00]} 41. g7 {[%emt 0:00:00]} Rg8 {[%emt 0:00:09]} 42. Qh6+ {[%emt 0:00:01]} Ke7 {[%emt 0:00:16]} 43. Qe3+ {[%emt 0:00:33]} Kd7 {[%emt 0:00:01] White must now prevent ...Rae8.} 44. Qxe1 {[%emt 0:00:36]} Rxg7 $11 {[%emt 0:00:01][%mdl 4096] Endgame KQ-KRR} 45. Qf2 {[%emt 0:00:01]} Rag8 {[%emt 0:00:30]} 46. Qb6 {[%emt 0:00:14][%csl LRa5,LRb7]} f5 {[%emt 0:00:03]} 47. h3 {[%emt 0:00:10]} (47. Qxb7+ {leads to mate.} Ke6) 47... cxb5 {[%emt 0:00:26]} 48. Qxb5+ {[%emt 0:00:01]} Ke6 {[%emt 0:00:08]} 49. Qb3+ {[%emt 0:01:14]} Ke5 {[%emt 0:00:07]} 50. Qb6 {[%emt 0:00:02][%mdl 8192] Prevents Rg1+.} (50. Qc3+ $11 Kf4 51. Qd2+ Kf3 52. Qd1+ Ke3 53. Qe1+ Kxd3 54. Qc3+ Ke4 55. Qe1+ Kf4 56. Qd2+ Ke4 57. Qe1+ Kf4 58. Qd2+ Ke5 59. Qxa5+ Ke6 60. Qd2) 50... Rg3 {[%emt 0:00:18]} (50... Rg1+ $142 51. Qxg1 Rxg1+ 52. Kxg1 Kd4) 51. Kh2 $19 {[%emt 0:00:01] [#]} Rg2+ $1 {[%emt 0:00:08]} 52. Kh1 {[%emt 0:00:01]} R2g3 $2 {[%emt 0:00:01]} (52... Kf4 $19 53. Qxd6+ Kf3 54. Qd5+ Ke2 55. Qe5+ Kd1) 53. Kh2 $1 $15 {[%emt 0:00:01]} f4 {[%emt 0:00:23]} (53... Rxd3 $15 54. Qb5+ Rd5 55. Qe2+ Kf6) 54. Qxb7 $11 {[%emt 0:00:03] Qe4+ is the strong threat. The position is equal.} d5 {[%emt 0:00:14] Inhibits Qe4+.} 55. Qc7+ {[%emt 0:00:15]} Kf5 {[%emt 0:00:07]} 56. Qf7+ {[%emt 0:00:11]} Ke5 {[%emt 0:00:02]} 57. Qc7+ {[%emt 0:00:02]} Kf5 {[%emt 0:00:19]} 58. Qf7+ {[%emt 0:00:02]} Ke5 {[%emt 0:00:00] ( -> ...Rg2+)} 59. Qc7+ {[%emt 0:00:01] Weighted Error Value: White=0.22 (precise) /Black=0.23 (precise)} 1/2-1/2

[Event "FTX Crypto Cup MCCT 2022"]
[Site "Miami"]
[Date "2022.08.11"]
[Round "7.3"]
[White "Duda, Jan-Krzysztof"]
[Black "Giri, Anish"]
[Result "1/2-1/2"]
[ECO "B51"]
[WhiteElo "2750"]
[BlackElo "2760"]
[Annotator "TA"]
[PlyCount "65"]
[EventDate "2022.08.10"]
[EventType "tourn"]
[EventCountry "USA"]
[SourceTitle "playchess.com"]
[Source "ChessBase"]
[SourceQuality "1"]
[TimeControl "900+10"]

{[%evp 15,65,47,58,3,3,9,7,8,5,0,0,-28,-28,-36,-20,-33,0,0,0,0,0,0,0,0,0,0,0,0,0,0,0,0,0,0,0,0,0,0,0,0,0,0,0,0,0,0,0,-8,0,-8,0,-22]} 1. e4 {[%emt 0:00:00]} c5 {[%emt 0:00:00]} 2. Nf3 {[%emt 0:00:01]} d6 {[%emt 0:00:01]} 3. Bb5+ {[%emt 0:00:02]} Nd7 {[%emt 0:00:02]} 4. d4 {[%emt 0:00:02]} cxd4 {[%emt 0:00:02]} 5. Qxd4 {[%emt 0:00:00]} a6 {[%emt 0:00:01]} 6. Bxd7+ {[%emt 0:00:01]} Bxd7 {[%emt 0:00:00]} 7. Nc3 {[%emt 0:00:01]} Nf6 {[%emt 0:00:12]} 8. Bg5 {[%emt 0:00:07]} e6 {[%emt 0:00:01]} 9. e5 {[%emt 0:00:07] B51: Sicilian: Moscow Variation (3 Bb5+) without 3...Bd7.} ({Better is} 9. O-O-O $14 h6 10. Bxf6 gxf6 11. Rd3) 9... dxe5 $11 {[%emt 0:00:10]} 10. Nxe5 {[%emt 0:00:00] [#] Threatens to win with Rd1.} Bb5 {[%emt 0:00:39]} 11. Qxd8+ {[%emt 0:02:01]} Rxd8 {[%emt 0:00:03]} 12. Nxb5 {[%emt 0:00:01]} axb5 {[%emt 0:00:01]} 13. Bxf6 {[%emt 0:00:00]} gxf6 {[%emt 0:00:01]} 14. Nd3 {[%emt 0:00:00] [#]} Rg8 $146 {[%emt 0:00:35]} ({Predecessor:} 14... b4 15. O-O-O Rg8 16. g3 Rg5 17. Kb1 Rgd5 18. Rde1 Rd4 19. f3 R8d5 20. Re4 Rxe4 21. fxe4 {0-1 (42) Tsuboi,E (2335)-Martinez,C (2335) Sao Paulo 1995}) 15. g3 {[%emt 0:00:03]} Rg5 {[%emt 0:00:16]} 16. a3 {[%emt 0:02:03] The position is equal.} Rgd5 {[%emt 0:00:28]} 17. Ke2 {[%emt 0:00:03]} e5 {[%emt 0:00:01]} 18. Rhd1 {[%emt 0:00:03]} f5 {[%emt 0:00:06]} 19. f4 {[%emt 0:01:33]} e4 {[%emt 0:00:55]} 20. Nb4 {[%emt 0:00:04]} Rxd1 {[%emt 0:00:52]} 21. Rxd1 {[%emt 0:00:00]} Rxd1 {[%emt 0:00:02]} 22. Kxd1 {[%emt 0:00:01][%mdl 4096] Endgame KB-KN} Kd7 {[%emt 0:01:08]} 23. Nd5 {[%emt 0:01:16]} Kd6 {[%emt 0:00:07]} 24. Ne3 {[%emt 0:00:09]} Ke6 {[%emt 0:00:00]} 25. c3 {[%emt 0:00:01]} Bc5 {[%emt 0:00:06]} 26. Ke2 {[%emt 0:00:11]} h5 {[%emt 0:00:08]} 27. h4 {[%emt 0:00:03]} Bxe3 {[%emt 0:00:21]} 28. Kxe3 {[%emt 0:00:00] KP-KP} Kd5 {[%emt 0:00:00] [#] Strongly threatening ...Kc4.} 29. b3 {[%emt 0:00:03]} Kc5 {[%emt 0:00:06]} 30. Ke2 {[%emt 0:00:02]} Kd5 {[%emt 0:00:00]} 31. Ke3 {[%emt 0:00:00]} Kc5 {[%emt 0:00:01]} 32. Ke2 {[%emt 0:00:01]} Kd5 {[%emt 0:00:01]} 33. Ke3 {[%emt 0:00:00] An even fight not without its subleties.  Weighted Error Value: White=0.06 (flawless) /Black=0.03 (flawless)} 1/2-1/2